bitfinex-derivatives/quotes_BTCF0:USTF0_20250207
["timestamp","ask_amount","ask_price","bid_price","bid_amount"]
[1738945060819,0.00015268,98214.0,98212.0,0.2035496]
[1738945062121,0.00015268,98214.0,98213.0,0.5839]
[1738945062321,0.2034844,98244.0,98213.0,0.5839]
[1738945062518,0.3608,98245.0,98243.0,0.2034852]
[1738945063243,0.3608,98255.0,98237.0,0.3608]
[1738945063525,0.3608,98255.0,98232.0,0.06888]
[1738945063526,0.3608,98255.0,98253.0,0.2034646]
[1738945064430,0.203469,98251.0,98245.0,0.38260247]
[1738945064725,0.3608,98246.0,98245.0,0.38260247]
[1738945064924,0.2034626,98254.0,98253.0,0.002]
[1738945065125,0.4560626,98254.0,98253.0,0.002]
[1738945065328,0.2034978,98237.0,98236.0,0.00015268]
[1738945065519,0.9250978,98237.0,98236.0,0.00015268]
[1738945065725,0.7216,98237.0,98210.0,0.17912167]
[1738945065925,0.3608,98218.0,98216.0,0.2035404]
[1738945066126,0.2035094,98232.0,98229.0,0.2035128]
[1738945066329,0.3608,98237.0,98213.0,0.59398375]
[1738945066527,0.3608,98228.0,98218.0,0.2035368]
[1738945066733,0.3608,98228.0,98213.0,0.59398375]
[1738945066935,0.564318,98228.0,98222.0,0.2035278]
[1738945067236,0.3608,98228.0,98222.0,0.2035278]
[1738945067422,0.2035366,98219.0,98215.0,0.2035426]
[1738945067628,0.2035413,98216.0,98213.0,0.00015268]
[1738945067830,0.3608,98228.0,98218.0,0.2035353]
[1738945067831,0.3608,98219.0,98218.0,0.2035353]
[1738945068020,0.2599,98227.0,98213.0,0.00015268]
[1738945068334,0.3608,98228.0,98226.0,0.2035206]
[1738945068936,0.00015268,98233.0,98232.0,0.2035081]
[1738945070123,0.04948992,98254.0,98253.0,0.2034646]
[1738945070429,0.04948992,98254.0,98225.0,0.7216]
[1738945070430,0.20498212,98258.0,98242.0,0.3608]
[1738945070632,0.00152782,98258.0,98256.0,0.2034576]
[1738945071734,0.00452782,98258.0,98256.0,0.2034576]
[1738945072229,0.00452782,98258.0,98256.0,0.2044576]
[1738945072427,0.00352782,98258.0,98256.0,0.2044576]
[1738945072630,0.00452782,98258.0,98256.0,0.2054576]
[1738945073533,0.00015268,98267.0,98265.0,0.2034385]
[1738945074638,0.00115268,98267.0,98265.0,0.001]
[1738945074832,0.00115268,98267.0,98265.0,0.2054389]
[1738945075027,0.00315268,98267.0,98265.0,0.2054389]
[1738945075435,0.00215268,98267.0,98265.0,0.2054389]
[1738945075629,0.00315268,98267.0,98265.0,0.2054389]
[1738945076537,0.18118741,98274.0,98265.0,0.2054389]
[1738945076730,0.18118741,98274.0,98273.0,0.2034232]
[1738945077735,0.18118741,98274.0,98271.0,0.0101428]
[1738945077736,0.3608,98280.0,98271.0,0.0101428]
[1738945078039,0.15087342,98283.0,98282.0,0.2034046]
[1738945078928,0.18118741,98291.0,98290.0,0.203388]
[1738945080329,0.54198741,98291.0,98290.0,0.203388]
[1738945081135,0.18118741,98291.0,98290.0,0.204388]
[1738945081737,0.1,98300.0,98299.0,0.2033694]
[1738945083041,0.1,98300.0,98290.0,0.002]
[1738945083237,0.203386,98291.0,98290.0,0.002]
[1738945083937,0.203386,98291.0,98290.0,0.001]
[1738945085343,0.2033958,98287.0,98286.0,0.2033918]
[1738945085534,0.2034212,98278.0,98277.0,0.2034133]
[1738945085845,0.2034212,98274.0,98273.0,0.00015268]
[1738945086045,0.5642212,98274.0,98273.0,0.00015268]
[1738945086848,0.5642212,98274.0,98273.0,0.20357588]
[1738945087339,0.5642212,98274.0,98273.0,0.00515268]
[1738945087731,0.5642212,98274.0,98273.0,0.01215268]
[1738945088644,0.5642212,98274.0,98273.0,0.00015268]
[1738945088845,0.5642212,98274.0,98273.0,0.00215268]
[1738945089352,0.3608,98274.0,98273.0,0.20357588]
[1738945089844,0.5642212,98274.0,98273.0,0.20357588]
[1738945090050,0.5642212,98274.0,98273.0,0.00015268]
[1738945090341,0.2034522,98259.0,98258.0,0.00990025]
[1738945090547,0.2034748,98250.0,98249.0,0.2034728]
[1738945090742,0.0508591,98267.0,98249.0,0.2034728]
[1738945090743,0.3608,98267.0,98249.0,0.01020199]
[1738945090947,0.2034464,98262.0,98261.0,0.2034418]
[1738945091144,0.2034653,98254.0,98253.0,0.2034641]
[1738945091340,0.2034771,98247.0,98246.0,0.0100837]
[1738945091544,0.2034812,98245.0,98244.0,0.00015259]
[1738945092640,0.3608,98247.0,98220.0,0.17902349]
[1738945092838,0.0508723,98241.0,98220.0,0.17902349]
[1738945093044,0.203516,98229.0,98228.0,0.203514]
[1738945093239,0.3608,98233.0,98220.0,0.17902349]
[1738945093447,0.5643061,98233.0,98232.0,0.2035081]
[1738945093751,0.2034986,98237.0,98236.0,0.2034994]
[1738945093947,0.00015268,98242.0,98241.0,0.2034862]
[1738945094550,8e-08,98242.0,98241.0,0.2034862]
[1738945094751,0.2034207,98275.0,98263.0,0.2034439]
[1738945095053,0.61524,98278.0,98277.0,0.2034149]
[1738945095248,0.3608,98278.0,98277.0,0.2034149]
[1738945095453,0.2034217,98274.0,98272.0,0.2034248]
[1738945095753,0.3608,98278.0,98275.0,0.2034178]
[1738945095944,0.3608,98278.0,98263.0,0.00015268]
[1738945096145,0.2034403,98265.0,98263.0,0.00015268]
[1738945096443,0.3608,98269.0,98267.0,0.2034347]
[1738945096745,0.5642319,98269.0,98267.0,0.2034347]
[1738945098152,0.2034419,98264.0,98263.0,0.00015268]
[1738945099647,0.3,98264.0,98234.0,0.5566]
[1738945099849,0.2035019,98235.0,98234.0,0.2788]
[1738945100254,0.3608,98238.0,98237.0,0.2034978]
[1738945100644,0.3608,98250.0,98234.0,0.2788]
[1738945100957,0.00015268,98247.0,98246.0,0.2034791]
[1738945102342,0.00015268,98247.0,98246.0,0.007]
[1738945103254,0.2035076,98233.0,98228.0,0.00015268]
[1738945103552,0.29195268,98247.0,98228.0,0.00015268]
[1738945103553,0.00015268,98247.0,98246.0,0.2034791]
[1738945103755,0.00015268,98247.0,98246.0,0.2064791]
[1738945103961,0.00015268,98247.0,98246.0,0.2114791]
[1738945104253,0.00015268,98247.0,98246.0,0.2124791]
[1738945104754,0.20362978,98247.0,98246.0,0.2144791]
[1738945104961,0.20362978,98247.0,98246.0,0.011]
[1738945104962,0.56442978,98247.0,98246.0,0.011]
[1738945105550,0.56442978,98247.0,98222.0,0.29142683]
[1738945105551,0.2035143,98229.0,98224.0,0.2035244]
[1738945105857,0.3608,98229.0,98222.0,0.00152683]
[1738945106256,0.3608,98229.0,98223.0,0.0099357]
[1738945106455,0.3608,98229.0,98228.0,0.20366908]
[1738945106655,0.2035117,98231.0,98230.0,0.2035123]
[1738945106852,0.3608,98231.0,98230.0,0.2035123]
[1738945107050,0.2035016,98236.0,98234.0,0.2035037]
[1738945107255,0.3608,98239.0,98228.0,0.00015268]
[1738945107462,0.5643127,98230.0,98228.0,0.20366788]
[1738945109061,0.3628,98230.0,98228.0,0.20366788]
[1738945110361,0.5663125,98230.0,98228.0,0.20366788]
[1738945112162,0.2035143,98229.0,98228.0,0.20366788]
[1738945112557,0.2035143,98229.0,98228.0,0.00015268]
[1738945112757,0.3628,98230.0,98222.0,0.00152683]
[1738945113054,0.2035558,98209.0,98205.0,0.00984394]
[1738945113254,0.203562,98206.0,98205.0,0.00984394]
[1738945113461,0.203562,98206.0,98200.0,0.60928]
[1738945113462,0.203562,98206.0,98204.0,0.2035656]
[1738945114166,0.3608,98209.0,98208.0,0.2035578]
[1738945115363,0.004,98209.0,98208.0,0.2035578]
[1738945115565,0.006,98209.0,98208.0,0.2035578]
[1738945115777,0.00015268,98215.0,98208.0,0.3608]
[1738945115965,0.00015268,98215.0,98214.0,0.2035454]
[1738945117167,0.15052324,98220.0,98219.0,0.2035351]
[1738945118860,0.18075219,98226.0,98218.0,0.278]
[1738945119070,0.2034782,98247.0,98243.0,0.2034853]
[1738945119259,0.2034815,98245.0,98243.0,0.2034853]
[1738945120063,0.5642833,98244.0,98243.0,0.2034853]
[1738945120371,0.18111555,98249.0,98248.0,0.203475]
[1738945121670,9e-08,98253.0,98252.0,0.2034667]
[1738945122863,9e-08,98253.0,98252.0,0.2054667]
[1738945123363,9e-08,98253.0,98252.0,0.2156814]
[1738945123759,9e-08,98253.0,98252.0,0.2186814]
[1738945127260,9e-08,98253.0,98252.0,0.0152147]
[1738945132365,9e-08,98253.0,98252.0,0.2186814]
[1738945133977,0.3608,98276.0,98252.0,0.0152147]
[1738945134176,0.00152751,98278.0,98277.0,0.2034149]
[1738945134870,0.20494041,98278.0,98277.0,0.2034149]
[1738945135070,0.20494041,98278.0,98266.0,0.17902349]
[1738945135071,0.2034239,98273.0,98266.0,0.17902349]
[1738945135270,0.007,98276.0,98275.0,0.2034191]
[1738945136372,0.007,98276.0,98268.0,0.00015268]
[1738945136569,0.3608,98269.0,98268.0,0.00015268]
[1738945137869,0.3608,98269.0,98240.0,0.53982349]
[1738945137870,0.2542968,98267.0,98258.0,0.203453]
[1738945138178,0.3608,98259.0,98258.0,0.203453]
[1738945138574,0.6201,98259.0,98258.0,0.203453]
[1738945139074,0.2034664,98253.0,98252.0,0.203465]
[1738945139671,0.2034708,98250.0,98249.0,0.00015268]
[1738945139977,0.5642708,98250.0,98249.0,0.00015268]
[1738945140680,0.3608,98250.0,98249.0,0.00015268]
[1738945140981,0.3608,98250.0,98249.0,0.00415268]
[1738945141577,0.3608,98250.0,98249.0,0.00715268]
[1738945141784,0.36224,98259.0,98249.0,0.00715268]
[1738945142081,0.3608,98259.0,98258.0,0.2034543]
[1738945142783,0.3608,98259.0,98249.0,0.00715268]
[1738945142976,0.3608,98259.0,98258.0,0.2034543]
[1738945143677,0.3608,98259.0,98249.0,0.18617617]
[1738945143678,0.2034665,98253.0,98252.0,0.2034652]
[1738945143875,0.2034708,98250.0,98249.0,0.00415268]
[1738945144088,0.2034708,98250.0,98249.0,0.00015268]
[1738945144981,0.2034708,98250.0,98249.0,0.00315268]
[1738945146568,0.2034708,98250.0,98249.0,0.00715268]
[1738945146769,0.3608,98259.0,98249.0,0.00715268]
[1738945146973,0.3608,98259.0,98258.0,0.2034543]
[1738945147374,0.5642522,98259.0,98258.0,0.2034543]
[1738945148573,0.5642522,98259.0,98258.0,0.2034542]
[1738945148987,0.2034522,98259.0,98258.0,0.2034542]
[1738945149280,0.3608,98259.0,98249.0,0.00015268]
[1738945149476,0.2034708,98250.0,98249.0,0.00015268]
[1738945149682,0.5642708,98250.0,98249.0,0.00015268]
[1738945150575,0.5642708,98250.0,98249.0,0.00315268]
[1738945151181,0.5642708,98250.0,98249.0,0.21062558]
[1738945151378,0.3608,98259.0,98249.0,0.00715268]
[1738945151577,0.18107333,98267.0,98249.0,0.18617617]
[1738945151777,0.2034513,98260.0,98250.0,0.2034692]
[1738945151976,0.18107333,98267.0,98250.0,0.0508675]
[1738945152185,0.38451093,98267.0,98266.0,0.2034377]
[1738945152386,0.18107333,98267.0,98257.0,0.17902349]
[1738945152680,0.36095268,98268.0,98257.0,0.17902349]
[1738945152983,0.00015268,98268.0,98267.0,0.2034356]
[1738945153884,0.00415268,98268.0,98267.0,0.2034356]
[1738945154281,0.00415268,98268.0,98267.0,0.2054356]
[1738945154794,0.00152751,98278.0,98277.0,0.2034149]
[1738945156186,0.15361651,98278.0,98277.0,0.21334747]
[1738945156379,0.1825068,98288.0,98287.0,0.2033942]
[1738945156592,0.1825068,98288.0,98276.0,0.5984]
[1738945156884,0.1825068,98288.0,98275.0,0.00988832]
[1738945157079,0.003,98278.0,98274.0,0.2034197]
[1738945157384,0.3638,98278.0,98274.0,0.2034197]
[1738945157689,0.003,98278.0,98276.0,0.2034168]
[1738945157895,0.2034125,98279.0,98276.0,0.001]
[1738945158186,0.5642149,98277.0,98276.0,0.001]
[1738945159080,0.2034232,98273.0,98272.0,0.00015268]
[1738945159287,0.3608,98277.0,98272.0,0.00015268]
[1738945159589,0.3608,98277.0,98275.0,0.2034179]
[1738945160804,0.5447468,98296.0,98272.0,0.00015268]
[1738945160805,0.3608,98295.0,98276.0,0.3608]
[1738945161086,0.3608,98295.0,98280.0,0.17902349]
[1738945161593,0.2034049,98282.0,98280.0,0.17902349]
[1738945161792,0.3608,98285.0,98275.0,0.006]
[1738945162093,0.2034095,98280.0,98279.0,0.2034102]
[1738945163489,0.3608,98285.0,98279.0,0.2034102]
[1738945163490,0.3608,98284.0,98279.0,0.002]
[1738945163696,0.2034087,98280.0,98248.0,0.2034737]
[1738945163993,0.203458,98257.0,98252.0,0.2034665]
[1738945164303,0.203458,98257.0,98255.0,0.38564247]
[1738945164486,0.203458,98257.0,98255.0,0.2034594]
[1738945164796,0.2034587,98256.0,98253.0,0.24325791]
[1738945165192,0.2034587,98256.0,98254.0,0.2034623]
[1738945165391,0.2034587,98256.0,98255.0,0.007]
[1738945165602,0.001,98257.0,98256.0,0.2034584]
[1738945165987,0.00015268,98266.0,98256.0,0.3608]
[1738945166292,0.00015268,98266.0,98265.0,0.2034398]
[1738945168190,0.00015268,98266.0,98265.0,0.2064398]
[1738945170185,0.1825068,98295.0,98265.0,0.01319384]
[1738945170394,0.1825068,98295.0,98294.0,0.2033797]
[1738945171687,0.007,98295.0,98294.0,0.2033797]
[1738945172187,0.2033839,98292.0,98285.0,0.00015268]
[1738945172389,0.2033839,98292.0,98290.0,0.2033874]
[1738945173087,0.007,98295.0,98294.0,0.2033798]
[1738945173289,0.005,98295.0,98294.0,0.2033798]
[1738945173686,0.2033933,98288.0,98286.0,0.2926]
[1738945173899,0.2033933,98288.0,98286.0,0.4959961]
[1738945174197,0.005,98292.0,98291.0,0.203386]
[1738945174393,0.002,98292.0,98291.0,0.203386]
[1738945174591,0.005,98295.0,98294.0,0.2033798]
[1738945174788,0.007,98295.0,98294.0,0.2033798]
[1738945175205,0.002,98295.0,98294.0,0.2033798]
[1738945175898,0.1,98300.0,98299.0,0.2033694]
[1738945177598,0.102,98300.0,98299.0,0.2033694]
[1738945177802,0.109,98300.0,98299.0,0.2043694]
[1738945178095,0.3608,98322.0,98299.0,0.2043694]
[1738945178096,0.00152616,98356.0,98326.0,0.2684131]
[1738945178303,0.00152616,98356.0,98337.0,0.2032908]
[1738945178505,0.5653,98376.0,98375.0,0.2032123]
[1738945178711,0.5653,98376.0,98375.0,0.3608]
[1738945179007,0.40228243,98385.0,98384.0,0.2031937]
[1738945179305,0.48406286,98418.0,98417.0,0.2031255]
[1738945179496,0.1694,98444.0,98431.0,0.2030958]
[1738945179693,0.3608,98443.0,98410.0,0.17902349]
[1738945179900,0.3608,98443.0,98416.0,0.2031273]
[1738945180096,0.3608,98443.0,98428.0,0.00015239]
[1738945180601,0.3608,98443.0,98430.0,0.17902349]
[1738945180806,0.634895,98447.0,98446.0,0.2030657]
[1738945181108,0.63349499,98447.0,98446.0,0.2030657]
[1738945181804,0.06231317,98447.0,98446.0,0.2030657]
[1738945182207,0.3608,98499.0,98446.0,0.07782214]
[1738945182414,0.1,98500.0,98485.0,0.2029851]
[1738945182598,0.1,98500.0,98480.0,0.17902349]
[1738945182599,0.1,98500.0,98481.0,0.2029921]
[1738945182799,0.794466,98497.0,98481.0,0.2029921]
[1738945183317,0.2030131,98472.0,98462.0,0.00015239]
[1738945183499,0.2030139,98472.0,98462.0,0.00015239]
[1738945184003,0.01013887,98497.0,98471.0,0.7216]
[1738945184204,0.3608,98488.0,98481.0,0.001]
[1738945184407,0.3608,98488.0,98481.0,0.002]
[1738945184706,0.2029903,98483.0,98481.0,0.002]
[1738945184912,0.001,98497.0,98482.0,0.3608]
[1738945185106,0.3608,98594.0,98523.0,0.3608]
[1738945185301,0.2651,98603.0,98560.0,0.27479205]
[1738945185607,0.2651,98603.0,98570.0,0.2028102]
[1738945185608,0.2027688,98591.0,98570.0,0.2028102]
[1738945185811,0.2651,98603.0,98573.0,0.5636036]
[1738945186114,0.10984919,98600.0,98583.0,0.3608]
[1738945186313,0.2027808,98585.0,98570.0,0.00015219]
[1738945186516,0.10984919,98600.0,98570.0,0.00015219]
[1738945187016,0.1,98600.0,98570.0,0.00015219]
[1738945187213,0.3608,98594.0,98580.0,0.27479205]
[1738945187513,0.1,98600.0,98579.0,0.3608]
[1738945187712,0.083,98600.0,98579.0,0.3608]
[1738945187916,0.2027551,98597.0,98580.0,0.27479205]
[1738945188108,0.2027551,98597.0,98579.0,0.3608]
[1738945188307,0.2027828,98584.0,98570.0,0.01035041]
[1738945188612,0.2027554,98597.0,98574.0,0.27479205]
[1738945188808,0.083,98600.0,98570.0,0.00015219]
[1738945189009,0.3608,98571.0,98570.0,0.00015219]
[1738945189208,0.2028023,98574.0,98570.0,0.00015219]
[1738945189516,0.2027858,98582.0,98570.0,0.00015219]
[1738945189714,0.2027858,98582.0,98543.0,0.06768]
[1738945189715,0.2028168,98567.0,98561.0,0.18249553]
[1738945189906,0.3608,98563.0,98553.0,0.24325791]
[1738945190105,0.3608,98563.0,98542.0,0.3027609]
[1738945190106,0.3608,98554.0,98542.0,0.3027609]
[1738945190501,0.3608,98543.0,98542.0,0.3027609]
[1738945190718,0.3608,98543.0,98494.0,0.3608]
[1738945190913,0.3608,98531.0,98494.0,0.3608]
[1738945191121,0.2028885,98532.0,98496.0,0.489754]
[1738945191421,0.3608,98531.0,98521.0,0.00015219]
[1738945191616,0.0102274,98534.0,98521.0,0.00015219]
[1738945191917,0.3608,98522.0,98521.0,0.00015219]
[1738945192119,0.3608,98522.0,98521.0,1e-08]
[1738945192315,0.6608,98522.0,98491.0,0.2935021]
[1738945192517,0.2029323,98511.0,98491.0,0.2935021]
[1738945192707,0.3608,98522.0,98491.0,0.2935021]
[1738945192708,0.3608,98510.0,98497.0,0.3608]
[1738945192910,0.3608,98498.0,98491.0,0.2935021]
[1738945193109,0.35063025,98498.0,98491.0,0.2935021]
[1738945193420,0.2029286,98513.0,98491.0,0.2935021]
[1738945193612,0.00015227,98504.0,98491.0,0.2935021]
[1738945194221,0.3608,98494.0,98491.0,0.2935021]
[1738945194930,0.3608,98494.0,98477.0,0.35220253]
[1738945195113,0.2029809,98488.0,98477.0,0.35220253]
[1738945195313,0.3608,98483.0,98468.0,0.3608]
[1738945195716,0.3608,98473.0,98456.0,0.3608]
[1738945195906,0.2030135,98472.0,98456.0,0.3608]
[1738945196110,0.20844107,98473.0,98456.0,0.3608]
[1738945196315,0.3608,98461.0,98455.0,0.00015227]
[1738945196519,0.3608,98461.0,98425.0,0.3608]
[1738945196520,0.6608,98461.0,98425.0,0.3608]
[1738945196813,0.27479205,98450.0,98416.0,0.3608]
[1738945197123,0.2031483,98406.0,98394.0,0.60003322]
[1738945197420,0.2031483,98406.0,98394.0,0.59951322]
[1738945197630,0.2031483,98406.0,98394.0,0.00052]
[1738945197813,0.27479205,98430.0,98405.0,0.7216]
[1738945198010,0.00015243,98413.0,98405.0,0.7216]
[1738945198409,0.203063,98448.0,98406.0,0.0676]
[1738945198612,0.3608,98455.0,98426.0,0.3608]
[1738945198808,0.2030609,98449.0,98426.0,0.3608]
[1738945199217,0.2030657,98446.0,98426.0,0.3608]
[1738945199419,0.2030711,98444.0,98426.0,0.3608]
[1738945199817,0.20322353,98444.0,98426.0,0.3608]
[1738945200321,0.00015243,98444.0,98434.0,0.3608]
[1738945200523,0.00015243,98444.0,98436.0,0.2030851]
[1738945200824,0.00015243,98444.0,98435.0,0.3608]
[1738945201217,0.00015243,98444.0,98441.0,0.202576]
[1738945203123,0.2030212,98468.0,98452.0,0.2030513]
[1738945203318,0.2030212,98468.0,98466.0,0.3608]
[1738945204119,0.27479205,98490.0,98466.0,0.3608]
[1738945204313,0.202974,98491.0,98483.0,0.3608]
[1738945204514,0.202974,98491.0,98477.0,0.2030015]
[1738945204723,0.63655206,98510.0,98490.0,0.3608]
[1738945204724,0.2029525,98501.0,98490.0,0.3608]
[1738945204922,0.202957,98499.0,98490.0,0.3608]
[1738945205120,0.00015235,98494.0,98490.0,0.3608]
[1738945205421,0.00015235,98494.0,98479.0,0.202997]
[1738945205624,0.00015235,98494.0,98486.0,0.3608]
[1738945205934,0.00015235,98494.0,98493.0,0.2029688]
[1738945206229,0.0015241,98508.0,98491.0,0.3608]
[1738945206230,0.0015241,98508.0,98496.0,0.2029607]
[1738945206427,0.0015241,98508.0,98499.0,0.3608]
[1738945206726,0.0015241,98508.0,98507.0,0.3608]
[1738945207425,0.00015061,98517.0,98507.0,0.3608]
[1738945207818,0.2029376,98509.0,98507.0,0.3608]
[1738945208124,0.00015032,98522.0,98502.0,0.00015226]
[1738945208432,0.00015032,98522.0,98521.0,0.3608]
[1738945209122,0.27479205,98550.0,98521.0,0.3608]
[1738945209328,0.4284,98551.0,98521.0,0.3608]
[1738945209514,0.3608,98558.0,98546.0,0.3608]
[1738945209718,0.2028552,98549.0,98546.0,0.3608]
[1738945210122,0.2028156,98568.0,98551.0,0.2028493]
[1738945210426,0.2028094,98571.0,98556.0,0.2028373]
[1738945210629,0.27479205,98590.0,98563.0,0.3608]
[1738945210827,0.27479205,98580.0,98563.0,0.3608]
[1738945211021,0.00999327,98583.0,98572.0,0.3608]
[1738945211217,0.27479205,98590.0,98563.0,0.36095218]
[1738945211422,0.2028127,98569.0,98563.0,0.36095218]
[1738945211618,0.2028205,98565.0,98563.0,0.36095218]
[1738945211932,0.27479205,98573.0,98563.0,0.00015218]
[1738945212122,0.2028009,98575.0,98572.0,0.3608]
[1738945212322,0.06756,98598.0,98572.0,0.3608]
[1738945212527,0.2027561,98597.0,98581.0,0.3608]
[1738945212831,0.2027727,98589.0,98581.0,0.3608]
[1738945213026,0.2027709,98590.0,98581.0,0.3608]
[1738945213337,0.2027848,98583.0,98581.0,0.3608]
[1738945213818,0.2027848,98583.0,98572.0,0.3608]
[1738945213819,0.202796,98577.0,98572.0,0.3608]
[1738945214020,0.27575206,98591.0,98572.0,0.3608]
[1738945214223,0.3608,98588.0,98570.0,0.3608]
[1738945214421,0.2028225,98564.0,98563.0,0.00015218]
[1738945214726,0.27479205,98580.0,98563.0,0.00015218]
[1738945214922,0.2028223,98565.0,98563.0,0.00015218]
[1738945216327,0.202791,98580.0,98570.0,0.2028086]
[1738945216529,0.2027932,98579.0,98573.0,0.3608]
[1738945216834,0.3608,98581.0,98573.0,0.3608]
[1738945217033,0.202789,98581.0,98573.0,0.3608]
[1738945217228,0.01018466,98587.0,98577.0,0.2027951]
[1738945217433,0.78711206,98600.0,98577.0,0.2027951]
[1738945217632,0.2027794,98585.0,98577.0,0.2027951]
[1738945217828,0.79720612,98600.0,98573.0,0.3608]
[1738945218029,0.2027993,98576.0,98573.0,0.3608]
[1738945218329,0.3608,98590.0,98579.0,0.2027906]
[1738945218535,0.2027736,98588.0,98579.0,0.2027906]
[1738945219034,0.2027799,98585.0,98573.0,0.3608]
[1738945219237,0.2027832,98584.0,98573.0,0.3608]
[1738945219439,0.37083578,98590.0,98573.0,0.3608]
[1738945219732,0.00096001,98635.0,98589.0,0.7216]
[1738945219944,0.27479205,98660.0,98622.0,0.3608]
[1738945220238,0.06752,98671.0,98630.0,0.27479205]
[1738945220428,0.2026063,98670.0,98668.0,0.3608]
[1738945220733,0.3608,98669.0,98644.0,0.3608]
[1738945220925,0.47741725,98660.0,98659.0,1e-08]
[1738945221125,0.2026498,98648.0,98637.0,0.3608]
[1738945221336,0.3608,98670.0,98647.0,0.3608]
[1738945221632,0.01,98724.0,98613.0,0.30587299]
[1738945221633,0.2026129,98666.0,98665.0,0.3608]
[1738945221831,0.0506447,98683.0,98646.0,0.3608]
[1738945222031,0.2026278,98659.0,98658.0,0.3608]
[1738945222534,0.2026334,98656.0,98655.0,1e-08]
[1738945222732,0.5634334,98656.0,98655.0,1e-08]
[1738945223034,0.2026334,98656.0,98655.0,1e-08]
[1738945223234,0.5634334,98656.0,98655.0,1e-08]
[1738945223533,0.2026725,98637.0,98636.0,0.3608]
[1738945223738,0.2026706,98638.0,98636.0,0.3608]
[1738945223938,0.27479205,98650.0,98618.0,0.3608]
[1738945224240,0.3608,98653.0,98618.0,0.3608]
[1738945224425,0.3608,98644.0,98618.0,0.3608]
[1738945224626,0.2026687,98639.0,98626.0,0.3608]
[1738945224838,0.2026756,98636.0,98627.0,0.2026927]
[1738945225134,0.2026756,98636.0,98628.0,0.20269]
[1738945225336,0.202693,98627.0,98626.0,0.36095201]
[1738945225534,0.202693,98627.0,98626.0,0.00015201]
[1738945226341,0.20408582,98627.0,98626.0,0.00015201]
[1738945227128,0.21400255,98627.0,98626.0,0.00015201]
[1738945228428,0.20408582,98627.0,98626.0,0.00015201]
[1738945228630,0.63655206,98650.0,98626.0,0.00015201]
[1738945228631,0.00096001,98650.0,98626.0,0.36095201]
[1738945228833,0.01018283,98653.0,98644.0,0.3608]
[1738945229028,0.2026337,98656.0,98644.0,0.3608]
[1738945229236,0.3608,98670.0,98644.0,0.3608]
[1738945229533,0.27479205,98680.0,98644.0,0.9242581]
[1738945229534,0.2026081,98669.0,98644.0,0.9242581]
[1738945229742,0.2026081,98669.0,98644.0,0.7216]
[1738945229928,0.20413247,98667.0,98666.0,0.3608]
[1738945230126,0.2026129,98666.0,98658.0,0.3608]
[1738945230331,0.2026272,98659.0,98658.0,0.3608]
[1738945231033,0.2026458,98650.0,98649.0,0.00015201]
[1738945232734,0.3608,98650.0,98623.0,0.3608]
[1738945232938,0.21250152,98650.0,98645.0,0.3608]
[1738945233136,0.2026349,98656.0,98646.0,0.2026539]
[1738945233341,0.2026303,98658.0,98655.0,0.3608]
[1738945233537,0.06744,98668.0,98655.0,0.3608]
[1738945233739,0.2026328,98657.0,98655.0,0.3608]
[1738945234048,0.00015201,98671.0,98656.0,0.3608]
[1738945234341,0.2026313,98657.0,98656.0,0.3608]
[1738945235140,0.2026313,98657.0,98656.0,0.36064845]
[1738945235946,0.2026396,98653.0,98652.0,1e-08]
[1738945236155,0.2026988,98625.0,98623.0,0.3608]
[1738945236641,0.3608,98647.0,98623.0,0.3608]
[1738945236838,0.36872426,98647.0,98623.0,0.3608]
[1738945237242,0.202687,98630.0,98625.0,0.00015209]
[1738945237544,0.00015209,98645.0,98625.0,0.00015209]
[1738945237545,0.2026941,98627.0,98625.0,0.00015209]
[1738945238047,0.2026881,98630.0,98626.0,0.3608]
[1738945238344,0.0506648,98644.0,98626.0,0.3608]
[1738945238547,0.2026927,98628.0,98626.0,0.3608]
[1738945238735,0.2026665,98640.0,98632.0,0.2026817]
[1738945238933,0.2026665,98640.0,98638.0,0.3608]
[1738945239237,0.0081478,98645.0,98638.0,0.3608]
[1738945239847,0.2026679,98640.0,98638.0,0.3608]
[1738945240548,0.2026895,98629.0,98626.0,0.3608]
[1738945240935,0.0081478,98645.0,98626.0,0.3608]
[1738945241141,0.00015209,98645.0,98636.0,0.3608]
[1738945241842,0.2026712,98638.0,98636.0,0.3608]
[1738945242039,0.2026585,98644.0,98636.0,0.3608]
[1738945242236,0.00015209,98645.0,98636.0,0.3608]
[1738945242448,0.202671,98638.0,98636.0,0.3608]
[1738945243747,0.202693,98627.0,98626.0,0.3608]
[1738945245147,0.202693,98627.0,98625.0,0.00015209]
[1738945245350,0.563493,98627.0,98625.0,0.00015209]
[1738945245541,0.202693,98627.0,98625.0,0.00015209]
[1738945245742,0.2107668,98627.0,98625.0,0.00015209]
[1738945247150,0.05860816,98627.0,98625.0,0.00015209]
[1738945247344,0.2107668,98627.0,98625.0,0.00015209]
[1738945247645,0.2107668,98627.0,98625.0,7.035e-05]
[1738945251351,0.0015096,98626.0,98613.0,0.3608]
[1738945251556,0.0015096,98626.0,98603.0,0.29695001]
[1738945251754,0.0015096,98626.0,98613.0,0.3608]
[1738945252255,0.2027186,98615.0,98613.0,0.3608]
[1738945252757,0.2027382,98605.0,98604.0,0.00015209]
[1738945253155,0.2042478,98605.0,98604.0,0.00015209]
[1738945253453,0.0015096,98605.0,98604.0,0.00015209]
[1738945254249,0.2042478,98605.0,98604.0,0.00015209]
[1738945255453,0.0015096,98605.0,98604.0,0.00015209]
[1738945259756,0.050674,98626.0,98604.0,0.00015209]
[1738945259956,0.2027357,98607.0,98604.0,0.00015209]
[1738945260146,0.2027376,98606.0,98604.0,0.00015209]
[1738945260756,0.2027376,98606.0,98604.0,9e-08]
[1738945261060,0.0674,98615.0,98587.0,0.3608]
[1738945261360,0.3608,98608.0,98587.0,0.3608]
[1738945261564,0.2027608,98595.0,98587.0,0.3608]
[1738945261761,0.0674,98617.0,98587.0,0.3608]
[1738945261952,0.0674,98617.0,98582.0,0.25197256]
[1738945261953,0.2027435,98603.0,98595.0,0.3608]
[1738945262152,0.00015209,98612.0,98595.0,0.3608]
[1738945262349,0.2027554,98597.0,98595.0,0.3608]
[1738945263061,0.53961523,98610.0,98592.0,0.00015209]
[1738945263062,0.2027629,98593.0,98592.0,0.00015209]
[1738945263254,0.36176001,98610.0,98592.0,0.36095209]
[1738945263563,0.2027444,98602.0,98600.0,0.3608]
[1738945264558,0.53865522,98610.0,98592.0,0.36095209]
[1738945264762,0.2027629,98593.0,98592.0,0.36095209]